[Event "DVM U20w 2019"]
[Site "Braunschweig"]
[Date "2019.12.28"]
[Round "4"]
[White "Prölß, Clara"]
[Black "Strobel, Miriam"]
[Result "0-1"]
[ECO "C42"]
[WhiteElo "1000"]
[BlackElo "1299"]
[Annotator "NA"]
[PlyCount "92"]
[EventDate "2019.12.27"]
[EventType "team-tourn"]
[EventRounds "7"]
[EventCountry "GER"]
[SourceTitle "playchess.com"]
[Source "ChessBase"]
[SourceQuality "1"]
[WhiteTeam "SC Bavaria Regensburg"]
[BlackTeam "SC Erlangen 48/88"]
[TimeControl "40/5400+30:1800+30"]

1. e4 {[%emt 0:00:00]} e5 {[%emt 0:00:00]} 2. Nf3 {[%emt 0:00:00]} Nf6 {[%emt 0:00:00]} 3. Nc3 {[%emt 0:00:52]} Bb4 {[%emt 0:00:00]} 4. a3 {[%emt 0:03:29]} Bxc3 {[%emt 0:00:39]} 5. dxc3 {[%emt 0:00:31]} Nxe4 {[%emt 0:02:27]} 6. Qe2 {[%emt 0:03:29]} Nf6 {[%emt 0:02:05]} 7. Qxe5+ {[%emt 0:03:51]} Qe7 {[%emt 0:00:25]} 8. Qxe7+ {[%emt 0:01:47]} Kxe7 {[%emt 0:00:04]} 9. Bc4 {[%emt 0:06:36]} Re8 {[%emt 0:01:58]} 10. Be3 {[%emt 0:05:41]} d5 {[%emt 0:02:23]} 11. Bb3 {[%emt 0:06:19]} Kf8 {[%emt 0:00:26]} 12. O-O-O {[%emt 0:03:03]} c6 {[%emt 0:00:12]} 13. h3 {[%emt 0:03:26]} Bf5 {[%emt 0:00:27]} 14. Rhe1 {[%emt 0:02:44]} Nbd7 {[%emt 0:00:34]} 15. Bd4 {[%emt 0:05:39]} a5 {[%emt 0:02:25]} 16. c4 {[%emt 0:05:00]} dxc4 {[%emt 0:01:01]} 17. Bxc4 {[%emt 0:01:06]} b5 {[%emt 0:00:09]} 18. Rxe8+ {[%emt 0:05:34]} Rxe8 {[%emt 0:01:36]} 19. Ba2 {[%emt 0:02:06]} Ra8 {[%emt 0:00:41]} 20. Bxf6 {[%emt 0:03:02]} Nxf6 {[%emt 0:00:23]} 21. g4 {[%emt 0:02:24]} Be4 {[%emt 0:01:54]} 22. Ng5 {[%emt 0:02:31]} Bg2 {[%emt 0:06:45]} 23. Bxf7 {[%emt 0:08:00]} Bxh3 {[%emt 0:00:25]} 24. Be6 {[%emt 0:01:59]} Bg2 {[%emt 0:02:31]} 25. Rd6 {[%emt 0:04:20]} Ke7 {[%emt 0:02:18]} 26. Rd3 {[%emt 0:03:01]} h6 {[%emt 0:01:33]} 27. Re3 {[%emt 0:02:47]} hxg5 {[%emt 0:01:21]} 28. Bd5+ {[%emt 0:00:31]} Kd6 {[%emt 0:02:56]} 29. Bxg2 {[%emt 0:00:25]} Nxg4 {[%emt 0:00:19]} 30. Rd3+ {[%emt 0:01:05]} Kc7 {[%emt 0:01:31]} 31. f3 {[%emt 0:00:40]} Ne5 {[%emt 0:01:54]} 32. Re3 {[%emt 0:00:58]} Kd6 {[%emt 0:00:30]} 33. Bf1 {[%emt 0:02:30]} Rf8 {[%emt 0:01:08]} 34. Be2 {[%emt 0:01:36]} Kd5 {[%emt 0:03:52]} 35. Kd2 {[%emt 0:01:18]} Rf6 {[%emt 0:07:02]} 36. Rc3 {[%emt 0:00:59]} b4 {[%emt 0:01:53]} 37. axb4 {[%emt 0:00:35]} axb4 {[%emt 0:00:11]} 38. Rb3 {[%emt 0:01:30]} c5 {[%emt 0:00:12]} 39. Ke3 {[%emt 0:00:52]} Rb6 {[%emt 0:02:35]} 40. c3 {[%emt 0:01:05]} Nc4+ {[%emt 0:01:37]} 41. Kd3 {[%emt 0:33:38]} Na5 {[%emt 0:30:02]} 42. c4+ {[%emt 0:02:42]} Kc6 {[%emt 0:00:55]} 43. Kc2 {[%emt 0:00:00]} Nxb3 {[%emt 0:00:00]} 44. Kxb3 {[%emt 0:00:00]} Ra6 {[%emt 0:00:00]} 45. Kc2 {[%emt 0:00:00]} Kd6 {[%emt 0:00:00] normal} 46. b3 {[%emt 0:00:00]} Ke5 {[%emt 0:00:00] normal} 0-1

[Event "DVM U20w 2019"]
[Site "Braunschweig"]
[Date "2019.12.29"]
[Round "5"]
[White "Bardorz, Jana"]
[Black "Schumann, Rabea"]
[Result "0-1"]
[ECO "B36"]
[WhiteElo "2054"]
[BlackElo "1873"]
[Annotator "NA"]
[PlyCount "86"]
[EventDate "2019.12.27"]
[EventType "team-tourn"]
[EventRounds "7"]
[EventCountry "GER"]
[SourceTitle "playchess.com"]
[Source "ChessBase"]
[SourceQuality "1"]
[WhiteTeam "SC Bavaria Regensburg"]
[BlackTeam "SG Güstrow/Teterow"]
[TimeControl "40/5400+30:1800+30"]

1. e4 {[%emt 0:00:00]} c5 {[%emt 0:00:00]} 2. Nf3 {[%emt 0:00:00]} Nc6 {[%emt 0:00:00]} 3. d4 {[%emt 0:00:00]} cxd4 {[%emt 0:00:00]} 4. Nxd4 {[%emt 0:00:00]} g6 {[%emt 0:00:00]} 5. c4 {[%emt 0:00:20]} Nf6 {[%emt 0:00:22]} 6. Nc3 {[%emt 0:00:07]} d6 {[%emt 0:00:17]} 7. Be3 {[%emt 0:01:15]} Ng4 {[%emt 0:01:03]} 8. Bc1 {[%emt 0:04:25]} Bg7 {[%emt 0:02:23]} 9. Nc2 {[%emt 0:06:22]} Bxc3+ {[%emt 0:06:23]} 10. bxc3 {[%emt 0:00:31]} Qa5 {[%emt 0:04:15]} 11. Bd2 {[%emt 0:07:46]} Qc5 {[%emt 0:12:13]} 12. Ne3 {[%emt 0:04:49]} Nce5 {[%emt 0:05:19]} 13. Be2 {[%emt 0:05:27]} Nxe3 {[%emt 0:13:01]} 14. Bxe3 {[%emt 0:01:05]} Qa5 {[%emt 0:01:49]} 15. Bd4 {[%emt 0:05:32]} f6 {[%emt 0:02:53]} 16. f4 {[%emt 0:04:53]} Nc6 {[%emt 0:02:18]} 17. O-O {[%emt 0:01:30]} O-O {[%emt 0:08:34]} 18. Bg4 {[%emt 0:10:13]} Nxd4 {[%emt 0:19:46]} 19. cxd4 {[%emt 0:01:53]} Qc3 {[%emt 0:01:16]} 20. Bf3 {[%emt 0:11:19]} Qxc4 {[%emt 0:02:33]} 21. Rf2 {[%emt 0:01:19]} e5 {[%emt 0:06:03]} 22. dxe5 {[%emt 0:07:16]} dxe5 {[%emt 0:00:21]} 23. fxe5 {[%emt 0:02:02]} fxe5 {[%emt 0:00:37]} 24. Rc1 {[%emt 0:03:33]} Qf7 {[%emt 0:02:52]} 25. Qd6 {[%emt 0:04:06]} Qf6 {[%emt 0:02:24]} 26. Qxf6 {[%emt 0:05:38]} Rxf6 {[%emt 0:00:07]} 27. Rc5 {[%emt 0:00:58]} b6 {[%emt 0:03:03]} 28. Rxe5 {[%emt 0:02:24]} Bb7 {[%emt 0:01:39]} 29. Re7 {[%emt 0:06:50]} Rf7 {[%emt 0:00:25]} 30. Rxb7 {[%emt 0:01:19]} Rxb7 {[%emt 0:00:10]} 31. e5 {[%emt 0:00:03]} Rab8 {[%emt 0:00:44]} 32. Bxb7 {[%emt 0:00:36]} Rxb7 {[%emt 0:00:05]} 33. Re2 {[%emt 0:00:50]} Kf7 {[%emt 0:01:15]} 34. Kf2 {[%emt 0:00:29]} Ke6 {[%emt 0:00:28]} 35. Kf3 {[%emt 0:00:50]} Rf7+ {[%emt 0:01:52]} 36. Ke4 {[%emt 0:00:32]} Rf5 {[%emt 0:00:13]} 37. Kd4 {[%emt 0:00:14]} Rf4+ {[%emt 0:00:16]} 38. Kc3 {[%emt 0:01:17]} Rf5 {[%emt 0:00:49]} 39. Kd4 {[%emt 0:00:04]} Rf4+ {[%emt 0:00:30]} 40. Kc3 {[%emt 0:00:05]} Ra4 {[%emt 0:00:58]} 41. Kd3 {[%emt 0:08:26]} Ra5 {[%emt 0:03:00]} 42. Kd4 {[%emt 0:02:07]} Rd5+ {[%emt 0:00:52]} 43. Kc4 {[%emt 0:00:27]} a6 {[%emt 0:07:04] normal} 0-1

[Event "DVM U20w 2019"]
[Site "Braunschweig"]
[Date "2019.12.29"]
[Round "5"]
[White "Ziegenfuss, Antonia"]
[Black "Muedder, Melanie"]
[Result "0-1"]
[ECO "D85"]
[WhiteElo "2052"]
[BlackElo "1902"]
[Annotator "NA"]
[PlyCount "55"]
[EventDate "2019.12.27"]
[EventType "team-tourn"]
[EventRounds "7"]
[EventCountry "GER"]
[SourceTitle "playchess.com"]
[Source "ChessBase"]
[SourceQuality "1"]
[WhiteTeam "OSG Baden-Baden"]
[BlackTeam "SG Solingen"]
[TimeControl "40/5400+30:1800+30"]

1. d4 {[%emt 0:00:00]} Nf6 {[%emt 0:00:00]} 2. c4 {[%emt 0:00:00]} g6 {[%emt 0:00:00]} 3. Nc3 {[%emt 0:00:00]} d5 {[%emt 0:00:00]} 4. cxd5 {[%emt 0:00:12]} Nxd5 {[%emt 0:00:00]} 5. e4 {[%emt 0:00:06]} Nxc3 {[%emt 0:00:12]} 6. bxc3 {[%emt 0:00:06]} Bg7 {[%emt 0:00:07] unterminated} 7. Qa4+ {[%emt 0:03:41]} Nd7 {[%emt 0:01:03] unterminated} 8. Nf3 {[%emt 0:02:37] unterminated} O-O {[%emt 0:01:18] unterminated} 9. Qa3 $11 {[%emt 0:06:26]} c5 {[%emt 0:01:27]} 10. d5 {[%emt 0:16:28]} Nf6 {[%emt 0:03:08]} 11. Bd3 {[%emt 0:01:10]} e6 {[%emt 0:13:07]} 12. Bg5 {[%emt 0:14:29]} exd5 {[%emt 0:06:31]} 13. e5 {[%emt 0:04:20]} Qe8 {[%emt 0:00:12]} 14. Qxc5 {[%emt 0:06:01]} Ne4 {[%emt 0:07:35]} 15. Qxd5 {[%emt 0:06:20]} Nxg5 {[%emt 0:01:42]} 16. Nxg5 {[%emt 0:00:38]} Qxe5+ {[%emt 0:00:17]} 17. Qxe5 {[%emt 0:00:06]} Bxe5 {[%emt 0:00:05]} 18. Rb1 {[%emt 0:05:38]} Bxc3+ {[%emt 0:02:49]} 19. Kf1 {[%emt 0:02:04]} h6 {[%emt 0:07:20]} 20. Ne4 {[%emt 0:02:35]} Bg7 {[%emt 0:00:37]} 21. f3 {[%emt 0:05:56]} b6 {[%emt 0:06:16]} 22. g3 {[%emt 0:04:05]} Bh3+ {[%emt 0:02:53]} 23. Kf2 {[%emt 0:01:44]} Bd4+ {[%emt 0:01:25]} 24. Ke2 {[%emt 0:00:42]} Be6 {[%emt 0:01:02]} 25. a4 {[%emt 0:02:13]} f5 {[%emt 0:03:21]} 26. Nd6 {[%emt 0:03:10]} Rad8 {[%emt 0:06:44]} 27. Nc4 {[%emt 0:04:13]} Rfe8 {[%emt 0:02:06]} 28. Kd2 {[%emt 0:01:42] normal} 0-1

[Event "DVM U20w 2019"]
[Site "Braunschweig"]
[Date "2019.12.29"]
[Round "5"]
[White "Köhler, Inken"]
[Black "Peglau, Mirjam"]
[Result "1-0"]
[ECO "B10"]
[WhiteElo "1998"]
[BlackElo "1916"]
[Annotator "NA"]
[PlyCount "115"]
[EventDate "2019.12.27"]
[EventType "team-tourn"]
[EventRounds "7"]
[EventCountry "GER"]
[SourceTitle "playchess.com"]
[Source "ChessBase"]
[SourceQuality "1"]
[WhiteTeam "TuRa Harksheide Norderstedt"]
[BlackTeam "Schachzentrum Seeblick"]
[TimeControl "40/5400+30:1800+30"]

1. e4 {[%emt 0:00:00]} c6 {[%emt 0:00:00]} 2. d3 {[%emt 0:00:00]} d5 {[%emt 0:00:00]} 3. Nd2 {[%emt 0:00:00]} Nf6 {[%emt 0:01:02] unterminated} 4. Ngf3 {[%emt 0:00:35]} Bg4 {[%emt 0:00:58]} 5. Qe2 {[%emt 0:02:31]} e6 {[%emt 0:01:58]} 6. g3 {[%emt 0:01:27]} Be7 {[%emt 0:00:42]} 7. Bg2 {[%emt 0:00:48]} O-O {[%emt 0:00:32]} 8. O-O {[%emt 0:00:25] unterminated} Nbd7 $11 {[%emt 0:02:59]} 9. Re1 {[%emt 0:02:29]} Nc5 {[%emt 0:04:13]} 10. e5 {[%emt 0:08:21]} Ne8 {[%emt 0:01:24]} 11. d4 {[%emt 0:05:13]} Nd7 {[%emt 0:00:12]} 12. Nf1 {[%emt 0:01:10]} c5 {[%emt 0:01:38]} 13. Be3 {[%emt 0:05:46]} Qb6 {[%emt 0:10:03]} 14. dxc5 {[%emt 0:03:43]} Nxc5 {[%emt 0:13:04]} 15. c3 {[%emt 0:02:13]} Qc7 {[%emt 0:06:01]} 16. Bd4 {[%emt 0:02:15]} Qd7 {[%emt 0:10:14]} 17. Qe3 {[%emt 0:08:19]} Bxf3 {[%emt 0:00:19]} 18. Bxf3 {[%emt 0:01:34]} Rc8 {[%emt 0:01:47]} 19. Nd2 {[%emt 0:03:59]} Qb5 {[%emt 0:01:28]} 20. b3 {[%emt 0:05:54]} Nc7 {[%emt 0:05:45]} 21. Be2 {[%emt 0:12:22]} Qc6 {[%emt 0:00:23]} 22. f4 {[%emt 0:02:32]} Nb5 {[%emt 0:00:29]} 23. Rac1 {[%emt 0:02:27]} Rfd8 {[%emt 0:02:15]} 24. Nf3 {[%emt 0:09:34]} b6 {[%emt 0:03:14]} 25. c4 {[%emt 0:02:59]} dxc4 {[%emt 0:02:35]} 26. Bxc4 {[%emt 0:01:51]} Nb7 {[%emt 0:08:55]} 27. Bd3 {[%emt 0:02:17]} Qd7 {[%emt 0:00:13]} 28. Qe4 {[%emt 0:01:11]} f5 {[%emt 0:00:53]} 29. Bxb5 {[%emt 0:05:40]} fxe4 {[%emt 0:02:48]} 30. Bxd7 {[%emt 0:00:05]} Rxc1 {[%emt 0:01:02]} 31. Bxe6+ {[%emt 0:00:05]} Kf8 {[%emt 0:00:06]} 32. Rxc1 {[%emt 0:00:05]} exf3 {[%emt 0:00:12]} 33. Rc8 {[%emt 0:01:13]} Rxc8 {[%emt 0:00:17]} 34. Bxc8 {[%emt 0:00:04]} Nc5 {[%emt 0:00:06]} 35. Kf2 {[%emt 0:01:07]} Nd3+ {[%emt 0:00:01]} 36. Kxf3 {[%emt 0:00:46]} Nc1 {[%emt 0:00:01]} 37. Bf5 {[%emt 0:00:50]} Nxa2 {[%emt 0:00:42]} 38. Bxh7 {[%emt 0:00:06]} Nb4 {[%emt 0:00:39]} 39. Be4 {[%emt 0:00:50]} Na6 {[%emt 0:00:28]} 40. f5 {[%emt 0:02:19]} Nc7 {[%emt 0:00:25]} 41. Kf4 {[%emt 0:34:14]} Nb5 {[%emt 0:30:18]} 42. Bb2 {[%emt 0:00:47]} Bb4 {[%emt 0:00:19]} 43. g4 {[%emt 0:00:00]} Nc3 {[%emt 0:00:00]} 44. Bf3 {[%emt 0:00:00]} a5 {[%emt 0:00:00]} 45. Bc6 {[%emt 0:00:00]} Ne2+ {[%emt 0:00:00]} 46. Ke3 {[%emt 0:00:00]} Ng1 {[%emt 0:00:00]} 47. Bg2 {[%emt 0:00:00]} Bc5+ {[%emt 0:00:00]} 48. Kd2 {[%emt 0:00:00]} b5 {[%emt 0:00:00]} 49. Bc6 {[%emt 0:00:00]} a4 {[%emt 0:00:00]} 50. bxa4 {[%emt 0:00:00]} bxa4 {[%emt 0:00:00]} 51. Bg2 {[%emt 0:00:00]} a3 {[%emt 0:00:00]} 52. Ba1 {[%emt 0:00:00]} Ke7 {[%emt 0:00:00]} 53. f6+ {[%emt 0:00:00]} gxf6 {[%emt 0:00:00]} 54. exf6+ {[%emt 0:00:00]} Ke6 {[%emt 0:00:00]} 55. h4 {[%emt 0:00:00]} Bf2 {[%emt 0:00:00]} 56. h5 {[%emt 0:00:00]} Kf7 {[%emt 0:00:00]} 57. Bd5+ {[%emt 0:00:00]} Kf8 {[%emt 0:00:00]} 58. h6 {[%emt 0:00:00] normal} 1-0

[Event "DVM U20w 2019"]
[Site "Braunschweig"]
[Date "2019.12.29"]
[Round "5"]
[White "Moenster, Madita"]
[Black "Hartmann, Cora"]
[Result "1-0"]
[ECO "C54"]
[WhiteElo "1956"]
[BlackElo "1842"]
[Annotator "NA"]
[PlyCount "43"]
[EventDate "2019.12.27"]
[EventType "team-tourn"]
[EventRounds "7"]
[EventCountry "GER"]
[SourceTitle "playchess.com"]
[Source "ChessBase"]
[SourceQuality "1"]
[WhiteTeam "SV Lingen"]
[BlackTeam "SC Borussia Lichtenberg"]
[TimeControl "40/5400+30:1800+30"]

1. e4 {[%emt 0:00:00]} e5 {[%emt 0:00:00]} 2. Nf3 {[%emt 0:00:00]} Nc6 {[%emt 0:00:00] unterminated} 3. Bc4 {[%emt 0:02:12]} Bc5 {[%emt 0:00:00] unterminated} 4. c3 {[%emt 0:01:31]} Nf6 {[%emt 0:00:00] unterminated} 5. d3 {[%emt 0:01:24]} d6 {[%emt 0:00:15] unterminated} 6. h3 {[%emt 0:01:35] unterminated} a6 $14 {[%emt 0:05:12]} 7. Bb3 {[%emt 0:02:39]} Ne7 {[%emt 0:09:50]} 8. O-O {[%emt 0:05:36]} Ba7 {[%emt 0:04:00]} 9. Re1 {[%emt 0:03:14]} Ng6 {[%emt 0:06:23]} 10. d4 {[%emt 0:04:40]} O-O {[%emt 0:06:23]} 11. Nbd2 {[%emt 0:07:49]} Re8 {[%emt 0:07:18]} 12. Bc2 {[%emt 0:06:56]} d5 {[%emt 0:12:28]} 13. dxe5 {[%emt 0:07:20]} Nxe5 {[%emt 0:01:23]} 14. Nxe5 {[%emt 0:01:17]} Rxe5 {[%emt 0:00:17]} 15. Nf3 {[%emt 0:00:38]} Re8 {[%emt 0:27:52]} 16. e5 {[%emt 0:12:07]} Nd7 {[%emt 0:04:15]} 17. Bg5 {[%emt 0:03:05]} f6 {[%emt 0:00:38]} 18. Qxd5+ {[%emt 0:00:47]} Kh8 {[%emt 0:00:12]} 19. exf6 {[%emt 0:03:00]} Nxf6 {[%emt 0:03:27]} 20. Rxe8+ {[%emt 0:03:34]} Qxe8 {[%emt 0:00:15]} 21. Bxf6 {[%emt 0:01:32]} gxf6 {[%emt 0:00:11]} 22. Re1 {[%emt 0:01:25] normal} 1-0

[Event "DVM U20w 2019"]
[Site "Braunschweig"]
[Date "2019.12.29"]
[Round "5"]
[White "Wiesner, Paula"]
[Black "Miljkovic, Jovana"]
[Result "1/2-1/2"]
[ECO "B22"]
[WhiteElo "1955"]
[BlackElo "2021"]
[Annotator "NA"]
[PlyCount "61"]
[EventDate "2019.12.27"]
[EventType "team-tourn"]
[EventRounds "7"]
[EventCountry "GER"]
[SourceTitle "playchess.com"]
[Source "ChessBase"]
[SourceQuality "1"]
[WhiteTeam "SC Borussia Lichtenberg"]
[BlackTeam "SV Lingen"]
[TimeControl "40/5400+30:1800+30"]

1. e4 {[%emt 0:00:00]} c5 {[%emt 0:00:00]} 2. c3 {[%emt 0:00:00]} d5 {[%emt 0:00:41]} 3. exd5 {[%emt 0:00:00]} Qxd5 {[%emt 0:00:03]} 4. d4 {[%emt 0:00:00] unterminated} e6 {[%emt 0:01:13]} 5. Nf3 {[%emt 0:00:21]} Nf6 {[%emt 0:00:18] unterminated} 6. Be2 {[%emt 0:01:19] unterminated} Nc6 {[%emt 0:00:55] unterminated} 7. O-O {[%emt 0:01:24]} Be7 {[%emt 0:00:26] unterminated} 8. Be3 {[%emt 0:04:03]} cxd4 {[%emt 0:00:07]} 9. cxd4 {[%emt 0:00:06] unterminated} O-O {[%emt 0:00:23]} 10. Nc3 {[%emt 0:00:17] unterminated} Qd6 {[%emt 0:02:29] unterminated} 11. a3 {[%emt 0:03:06] unterminated} b6 {[%emt 0:02:18] unterminated} 12. Qb3 {[%emt 0:04:24] unterminated} Bb7 $11 {[%emt 0:02:08]} 13. Rfd1 {[%emt 0:03:26]} Na5 {[%emt 0:02:51]} 14. Qa2 {[%emt 0:03:37]} Ne4 {[%emt 0:06:48]} 15. Nb5 {[%emt 0:04:44]} Qd8 {[%emt 0:01:51]} 16. b4 {[%emt 0:02:29]} a6 {[%emt 0:17:27]} 17. bxa5 {[%emt 0:05:56]} axb5 {[%emt 0:00:05]} 18. Qb2 Rxa5 {[%emt 0:04:20]} 19. Bxb5 {[%emt 0:09:22]} Rxb5 {[%emt 0:06:54]} 20. Qxb5 {[%emt 0:01:22]} Nc3 {[%emt 0:00:09]} 21. Qb3 {[%emt 0:04:52]} Nxd1 {[%emt 0:03:53]} 22. Rxd1 {[%emt 0:03:36]} Bd5 {[%emt 0:11:23]} 23. Qb5 {[%emt 0:03:00]} Bxa3 {[%emt 0:01:32]} 24. Ne5 {[%emt 0:05:57]} Bd6 {[%emt 0:05:08]} 25. Nd7 {[%emt 0:08:38]} Qh4 {[%emt 0:09:34]} 26. h3 {[%emt 0:00:59]} Qe4 {[%emt 0:05:07]} 27. Qf1 {[%emt 0:00:56]} Rd8 {[%emt 0:02:25]} 28. Nxb6 {[%emt 0:00:17]} Bb7 {[%emt 0:00:48]} 29. Nc4 {[%emt 0:02:00]} Bb8 {[%emt 0:01:51]} 30. Rb1 {[%emt 0:06:39]} Qc6 {[%emt 0:05:20]} 31. Ne5 {normal} 1/2-1/2

[Event "DVM U20w 2019"]
[Site "Braunschweig"]
[Date "2019.12.29"]
[Round "5"]
[White "Sherif, Amina"]
[Black "Peglau, Charis"]
[Result "1/2-1/2"]
[ECO "A06"]
[WhiteElo "1945"]
[BlackElo "1728"]
[Annotator "NA"]
[PlyCount "91"]
[EventDate "2019.12.27"]
[EventType "team-tourn"]
[EventRounds "7"]
[EventCountry "GER"]
[SourceTitle "playchess.com"]
[Source "ChessBase"]
[SourceQuality "1"]
[WhiteTeam "TuRa Harksheide Norderstedt"]
[BlackTeam "Schachzentrum Seeblick"]
[TimeControl "40/5400+30:1800+30"]

1. Nf3 {[%emt 0:00:00]} d5 {[%emt 0:00:00]} 2. g3 {[%emt 0:00:00]} Nf6 {[%emt 0:00:00]} 3. Bg2 {[%emt 0:00:00]} Bf5 {[%emt 0:01:19]} 4. O-O {[%emt 0:00:09]} e6 {[%emt 0:00:32]} 5. d3 {[%emt 0:00:51] unterminated} Bd6 {[%emt 0:00:54] unterminated} 6. Nbd2 {[%emt 0:00:21]} O-O {[%emt 0:01:05]} 7. Re1 {[%emt 0:00:38] unterminated} Bg6 {[%emt 0:01:25] unterminated} 8. e4 {[%emt 0:02:44]} dxe4 {[%emt 0:00:41]} 9. dxe4 {[%emt 0:00:09] unterminated} Bc5 $11 {[%emt 0:01:57]} 10. Qe2 {[%emt 0:01:27]} c6 {[%emt 0:02:09]} 11. h3 {[%emt 0:02:23]} h6 {[%emt 0:03:08]} 12. b3 {[%emt 0:10:57]} Qc7 {[%emt 0:04:40]} 13. Kh2 Nbd7 {[%emt 0:05:00]} 14. Bb2 {[%emt 0:07:54]} Rfd8 {[%emt 0:05:24]} 15. a3 {[%emt 0:01:29]} a5 {[%emt 0:05:03]} 16. e5 {[%emt 0:22:11]} Nd5 {[%emt 0:04:25]} 17. c4 {[%emt 0:02:01]} Ne7 {[%emt 0:03:20]} 18. Nh4 {[%emt 0:11:44]} Bh7 {[%emt 0:01:22]} 19. Ne4 {[%emt 0:01:35]} Bxe4 {[%emt 0:01:48]} 20. Bxe4 {[%emt 0:00:19]} Nf8 {[%emt 0:08:30]} 21. Rad1 {[%emt 0:13:53]} Qb6 {[%emt 0:02:18]} 22. Bc2 {[%emt 0:01:38]} Rxd1 {[%emt 0:02:52]} 23. Rxd1 {[%emt 0:00:33]} Rd8 {[%emt 0:00:17]} 24. Rxd8 {[%emt 0:00:28]} Qxd8 {[%emt 0:00:08]} 25. Nf3 {[%emt 0:01:36]} Neg6 {[%emt 0:01:50]} 26. Kg2 {[%emt 0:00:24]} Qd7 {[%emt 0:03:28]} 27. h4 {[%emt 0:02:23]} b5 {[%emt 0:08:00]} 28. Qe4 {[%emt 0:02:35]} Ne7 {[%emt 0:04:16]} 29. h5 {[%emt 0:04:54]} Bb6 {[%emt 0:04:04]} 30. Bc3 {[%emt 0:03:18]} Qa7 {[%emt 0:04:15]} 31. Qe2 {[%emt 0:00:09]} bxc4 {[%emt 0:04:15]} 32. bxc4 {[%emt 0:00:07]} Bc5 {[%emt 0:00:54]} 33. Bb2 {[%emt 0:01:17]} Qb6 {[%emt 0:01:15]} 34. Qd2 {[%emt 0:03:24]} Kh8 {[%emt 0:01:38]} 35. Bc3 {[%emt 0:01:05]} Bxa3 {[%emt 0:02:54]} 36. Bxa5 {[%emt 0:00:04]} Qb8 {[%emt 0:00:15]} 37. Bc3 {[%emt 0:00:59]} Bc5 {[%emt 0:00:33]} 38. Qf4 {[%emt 0:00:53]} Kg8 {[%emt 0:01:06]} 39. Nh2 {[%emt 0:00:52]} Qc8 {[%emt 0:03:13]} 40. Ng4 {[%emt 0:01:29]} Nf5 {[%emt 0:02:33]} 41. Be4 {[%emt 0:01:59]} Nh7 {[%emt 0:01:17]} 42. Qd2 {[%emt 0:06:14]} Ng5 {[%emt 0:01:35]} 43. Bc2 {[%emt 0:00:14]} Bb6 {[%emt 0:01:31]} 44. Bb2 {[%emt 0:05:48]} Qb7 {[%emt 0:03:01]} 45. Nh2 {[%emt 0:04:19]} c5+ {[%emt 0:02:01]} 46. f3 {[%emt 0:00:28] normal} 1/2-1/2

[Event "DVM U20w 2019"]
[Site "Braunschweig"]
[Date "2019.12.29"]
[Round "5"]
[White "Bashylina, Luisa"]
[Black "Doll, Rebecca"]
[Result "1/2-1/2"]
[ECO "C45"]
[WhiteElo "1935"]
[BlackElo "1659"]
[Annotator "NA"]
[PlyCount "54"]
[EventDate "2019.12.27"]
[EventType "team-tourn"]
[EventRounds "7"]
[EventCountry "GER"]
[SourceTitle "playchess.com"]
[Source "ChessBase"]
[SourceQuality "1"]
[WhiteTeam "SG Solingen"]
[BlackTeam "OSG Baden-Baden"]
[TimeControl "40/5400+30:1800+30"]

1. e4 e5 2. Nf3 Nc6 3. d4 exd4 4. Nxd4 Nf6 5. Nxc6 bxc6 6. e5 Qe7 7. Qe2 Nd5 8. c4 Ba6 9. b3 g6 10. g3 Bg7 11. Bb2 O-O 12. Bg2 Rae8 13. O-O Bxe5 14. Qxe5 Qxe5 15. Bxe5 Rxe5 16. cxd5 Bxf1 17. Kxf1 cxd5 {unterminated} 18. Nc3 $15 (18. f4 $5 {[%cal Rf4e5]} Re3 19. Bxd5 $11) 18... c6 19. Rd1 Rfe8 20. Bf3 Kf8 21. Na4 Ke7 22. Nb2 Kd8 23. Nd3 R5e7 24. b4 Kc7 25. b5 Rb8 26. a4 Kd6 27. Nb4 Ree8 {normal} 1/2-1/2

[Event "DVM U20w 2019"]
[Site "Braunschweig"]
[Date "2019.12.29"]
[Round "5"]
[White "Möller, Lisa-Marie"]
[Black "Ziegenfuss, Larissa"]
[Result "1-0"]
[ECO "B51"]
[WhiteElo "1934"]
[BlackElo "1755"]
[Annotator "NA"]
[PlyCount "88"]
[EventDate "2019.12.27"]
[EventType "team-tourn"]
[EventRounds "7"]
[EventCountry "GER"]
[SourceTitle "playchess.com"]
[Source "ChessBase"]
[SourceQuality "1"]
[WhiteTeam "Düsseldorfer SK"]
[BlackTeam "SG Blau-Weiß Stadtilm"]
[TimeControl "40/5400+30:1800+30"]

1. e4 {[%emt 0:00:00]} c5 {[%emt 0:00:00]} 2. Nf3 {[%emt 0:00:00]} d6 {[%emt 0:00:00]} 3. Bb5+ {[%emt 0:00:00]} Nd7 {[%emt 0:00:00]} 4. d4 {[%emt 0:00:07]} cxd4 {[%emt 0:00:14]} 5. Qxd4 {[%emt 0:00:18]} e5 {[%emt 0:06:19]} 6. Qd3 {[%emt 0:04:03]} Be7 {[%emt 0:04:38]} 7. Nc3 {[%emt 0:01:46]} Ngf6 {[%emt 0:02:06]} 8. Bg5 {[%emt 0:01:46]} O-O {[%emt 0:05:50]} 9. Bxd7 {[%emt 0:01:07]} Nxd7 {[%emt 0:06:50]} 10. Bxe7 {[%emt 0:00:55]} Qxe7 {[%emt 0:00:15]} 11. O-O-O {[%emt 0:00:57]} Nc5 {[%emt 0:05:10]} 12. Qxd6 {[%emt 0:01:38]} Qxd6 {[%emt 0:00:21]} 13. Rxd6 {[%emt 0:00:03]} f6 {[%emt 0:02:53]} 14. Nd2 {[%emt 0:13:03]} b6 {[%emt 0:03:24]} 15. Nc4 {[%emt 0:03:12]} Bb7 {[%emt 0:04:28]} 16. f3 {[%emt 0:02:59]} Rac8 {[%emt 0:03:20]} 17. Ne3 {[%emt 0:02:03]} Rfd8 {[%emt 0:05:35]} 18. Rhd1 {[%emt 0:01:38]} Rxd6 {[%emt 0:01:10]} 19. Rxd6 {[%emt 0:00:10]} Kf8 {[%emt 0:02:21]} 20. Nf5 {[%emt 0:03:21]} Ba6 {[%emt 0:02:52]} 21. h4 {[%emt 0:12:49]} Bf1 {[%emt 0:05:05]} 22. Ne3 {[%emt 0:01:45]} Ba6 {[%emt 0:02:04]} 23. Rd2 {[%emt 0:03:55]} Rc7 {[%emt 0:03:53]} 24. Rd8+ {[%emt 0:04:18]} Kf7 {[%emt 0:02:32]} 25. Ncd5 {[%emt 0:03:32]} Rc8 {[%emt 0:04:26]} 26. Rxc8 {[%emt 0:02:53]} Bxc8 {[%emt 0:00:05]} 27. Kd2 {[%emt 0:01:37]} Bb7 {[%emt 0:03:51]} 28. Nf5 {[%emt 0:06:20]} Kf8 {[%emt 0:03:52]} 29. Kc3 {[%emt 0:03:26]} Ne6 {[%emt 0:01:12]} 30. Nb4 {[%emt 0:05:21]} a5 {[%emt 0:04:04]} 31. Nd5 {[%emt 0:01:56]} b5 {[%emt 0:01:37]} 32. Nd6 {[%emt 0:06:36]} Bc6 {[%emt 0:02:06]} 33. Ne3 {[%emt 0:01:57]} Nf4 {[%emt 0:02:55]} 34. Kb3 {[%emt 0:02:51]} g6 {[%emt 0:02:36]} 35. a4 {[%emt 0:04:14]} bxa4+ {[%emt 0:02:12]} 36. Kc4 {[%emt 0:00:42]} h5 {[%emt 0:03:05]} 37. Kc5 {[%emt 0:00:57]} Bd7 {[%emt 0:00:33]} 38. Ndc4 {[%emt 0:01:13]} g5 {[%emt 0:00:48]} 39. hxg5 {[%emt 0:01:01]} h4 {[%emt 0:01:40]} 40. gxf6 {[%emt 0:02:35]} Nxg2 {[%emt 0:00:36]} 41. Nf1 {[%emt 0:30:30]} h3 {[%emt 0:04:47]} 42. Nxe5 {[%emt 0:00:00]} Be8 {[%emt 0:01:15]} 43. Ng4 {[%emt 0:00:00]} Bd7 {[%emt 0:02:55]} 44. Kb6 {[%emt 0:00:00]} Ne1 {[%emt 0:01:22] normal} 1-0